[Event "Live Chess"]
[Site "Chess.com"]
[Date "2024.06.01"]
[Round "-"]
[White "StoreySniper"]
[Black "OurKnightAtTheOpera"]
[Result "1-0"]
[WhiteElo "2542"]
[BlackElo "1985"]
[TimeControl "300"]
[EndTime "15:53:47 PDT"]
[Termination "StoreySniper won by resignation"]

1. e4 {[%clk 0:04:58.3]} 1... e5 {[%clk 0:04:57.8]} 2. Nf3 {[%clk 0:04:57.6]}
2... Nc6 {[%clk 0:04:57]} 3. Bb5 {[%clk 0:04:56.7]} 3... Nf6 {[%clk 0:04:56]} 4.
Bxc6 {[%clk 0:04:55.5]} 4... dxc6 {[%clk 0:04:53.4]} 5. d3 {[%clk 0:04:55.1]}
5... Bd6 {[%clk 0:04:52.4]} 6. Nbd2 {[%clk 0:04:53.9]} 6... O-O {[%clk
0:04:50.2]} 7. Nc4 {[%clk 0:04:52.7]} 7... Re8 {[%clk 0:04:48.6]} 8. Bg5 {[%clk
0:04:51.3]} 8... h6 {[%clk 0:04:46.4]} 9. Bh4 {[%clk 0:04:50.6]} 9... Bg4 {[%clk
0:04:44.7]} 10. h3 {[%clk 0:04:48.7]} 10... Bh5 {[%clk 0:04:40.3]} 11. g4 {[%clk
0:04:46.8]} 11... Bg6 {[%clk 0:04:39.5]} 12. Qe2 {[%clk 0:04:28.2]} 12... a5
{[%clk 0:04:29.7]} 13. Ne3 {[%clk 0:04:14.3]} 13... b5 {[%clk 0:04:03.4]} 14.
Nf5 {[%clk 0:04:12]} 14... Bf8 {[%clk 0:03:46.8]} 15. g5 {[%clk 0:03:52.7]}
15... hxg5 {[%clk 0:03:37.9]} 16. Bxg5 {[%clk 0:03:50.9]} 16... Bxf5 {[%clk
0:03:29.5]} 17. exf5 {[%clk 0:03:48.1]} 17... Qd6 {[%clk 0:03:11.3]} 18. Nd2
{[%clk 0:03:31.4]} 18... Qb4 {[%clk 0:02:50.3]} 19. Bxf6 {[%clk 0:03:24.5]} 1-0

[Event "Live Chess"]
[Site "Chess.com"]
[Date "2024.06.01"]
[Round "-"]
[White "CCGoodKnightRookie"]
[Black "updatedopenings2024"]
[Result "1-0"]
[WhiteElo "2328"]
[BlackElo "2004"]
[TimeControl "300"]
[EndTime "15:54:45 PDT"]
[Termination "CCGoodKnightRookie won by resignation"]

1. d4 {[%clk 0:04:58.2]} 1... Nf6 {[%clk 0:04:58.5]} 2. Nc3 {[%clk 0:04:57.6]}
2... d5 {[%clk 0:04:57.4]} 3. Bf4 {[%clk 0:04:56.8]} 3... a6 {[%clk 0:04:56.7]}
4. e3 {[%clk 0:04:56.2]} 4... e6 {[%clk 0:04:56.2]} 5. Nf3 {[%clk 0:04:55.4]}
5... b5 {[%clk 0:04:55.7]} 6. Bd3 {[%clk 0:04:54.7]} 6... Bb7 {[%clk 0:04:55]}
7. O-O {[%clk 0:04:54.2]} 7... Nbd7 {[%clk 0:04:54.5]} 8. Ne5 {[%clk 0:04:53.8]}
8... c5 {[%clk 0:04:53.5]} 9. Nxd7 {[%clk 0:04:53.2]} 9... Nxd7 {[%clk
0:04:51.9]} 10. dxc5 {[%clk 0:04:52.7]} 10... Nxc5 {[%clk 0:04:51.8]} 11. Qh5
{[%clk 0:04:51.5]} 11... g6 {[%clk 0:04:50]} 12. Qh3 {[%clk 0:04:49.8]} 12...
Bg7 {[%clk 0:04:48.7]} 13. Bh6 {[%clk 0:04:46.2]} 13... O-O {[%clk 0:04:47.2]}
14. Bxg7 {[%clk 0:04:44.8]} 14... Kxg7 {[%clk 0:04:47.1]} 15. Ne2 {[%clk
0:04:42]} 15... Rc8 {[%clk 0:04:43.1]} 16. Ng3 {[%clk 0:04:36.6]} 16... Nxd3
{[%clk 0:04:40.5]} 17. cxd3 {[%clk 0:04:35.1]} 17... Rc2 {[%clk 0:04:40]} 18.
Qg4 {[%clk 0:04:28.1]} 18... Qf6 {[%clk 0:04:37.9]} 19. Nh5+ {[%clk 0:04:26.2]}
1-0

[Event "Live Chess"]
[Site "Chess.com"]
[Date "2024.06.01"]
[Round "-"]
[White "koekoekoe"]
[Black "RichardABates"]
[Result "1-0"]
[WhiteElo "1973"]
[BlackElo "2287"]
[TimeControl "300"]
[EndTime "15:54:50 PDT"]
[Termination "koekoekoe won by checkmate"]

1. d4 {[%clk 0:04:59.5]} 1... Nf6 {[%clk 0:04:57.7]} 2. Bf4 {[%clk 0:04:59.1]}
2... d6 {[%clk 0:04:54]} 3. e3 {[%clk 0:04:58.4]} 3... Nc6 {[%clk 0:04:51.9]} 4.
Nf3 {[%clk 0:04:58]} 4... Bg4 {[%clk 0:04:49.9]} 5. Be2 {[%clk 0:04:56.7]} 5...
e5 {[%clk 0:04:39.7]} 6. dxe5 {[%clk 0:04:53.6]} 6... dxe5 {[%clk 0:04:37.4]} 7.
Qxd8+ {[%clk 0:04:50]} 7... Rxd8 {[%clk 0:04:35.1]} 8. Nxe5 {[%clk 0:04:43.7]}
8... Bxe2 {[%clk 0:04:24.4]} 9. Kxe2 {[%clk 0:04:42]} 9... Nb4 {[%clk 0:04:09]}
10. Na3 {[%clk 0:04:35.6]} 10... Ne4 {[%clk 0:04:03.1]} 11. Rhd1 {[%clk
0:04:21.9]} 11... Bd6 {[%clk 0:04:01.1]} 12. c3 {[%clk 0:04:09.5]} 12... Nd5
{[%clk 0:03:51.9]} 13. Rxd5 {[%clk 0:04:03.2]} 13... Bxa3 {[%clk 0:03:42.9]} 14.
Rxd8+ {[%clk 0:04:03.1]} 14... Kxd8 {[%clk 0:03:41.5]} 15. Nxf7+ {[%clk
0:03:53]} 15... Ke7 {[%clk 0:03:40.4]} 16. Nxh8 {[%clk 0:03:51.8]} 16... Bxb2
{[%clk 0:03:39.2]} 17. Rf1 {[%clk 0:03:36.2]} 17... Nxc3+ {[%clk 0:03:23.4]} 18.
Kd3 {[%clk 0:03:33.8]} 18... Nd5 {[%clk 0:03:17.5]} 19. Rb1 {[%clk 0:03:29]}
19... Bf6 {[%clk 0:03:07.2]} 20. Rxb7 {[%clk 0:03:24.4]} 20... g6 {[%clk
0:03:00.7]} 21. Bxc7 {[%clk 0:03:14.2]} 21... Ke6 {[%clk 0:02:45.7]} 22. Nf7
{[%clk 0:02:56.3]} 22... Kxf7 {[%clk 0:02:31.8]} 23. Be5+ {[%clk 0:02:54.2]}
23... Be7 {[%clk 0:02:30.2]} 24. Bd6 {[%clk 0:02:48.2]} 24... a5 {[%clk
0:02:27]} 25. Bxe7 {[%clk 0:02:45.3]} 25... Nxe7 {[%clk 0:02:25.5]} 26. Ra7
{[%clk 0:02:44.8]} 26... Kg8 {[%clk 0:02:04.8]} 27. Rxe7 {[%clk 0:02:42.1]}
27... Kh8 {[%clk 0:02:03.5]} 28. Ke4 {[%clk 0:02:40.4]} 28... Kg8 {[%clk
0:02:02.3]} 29. Ke5 {[%clk 0:02:39.7]} 29... Kh8 {[%clk 0:02:01.6]} 30. Kf6
{[%clk 0:02:38.5]} 30... Kg8 {[%clk 0:02:00.9]} 31. Re8# {[%clk 0:02:37.5]} 1-0

[Event "Live Chess"]
[Site "Chess.com"]
[Date "2024.06.01"]
[Round "-"]
[White "vincents82"]
[Black "degringolade64"]
[Result "0-1"]
[WhiteElo "2037"]
[BlackElo "2139"]
[TimeControl "300"]
[EndTime "15:54:56 PDT"]
[Termination "degringolade64 won by resignation"]

1. e4 {[%clk 0:04:53.8]} 1... e5 {[%clk 0:04:58.1]} 2. Nf3 {[%clk 0:04:52.2]}
2... Nc6 {[%clk 0:04:57.6]} 3. Bb5 {[%clk 0:04:51.4]} 3... a6 {[%clk 0:04:55.8]}
4. Ba4 {[%clk 0:04:50.4]} 4... Nf6 {[%clk 0:04:53.8]} 5. d3 {[%clk 0:04:49.4]}
5... b5 {[%clk 0:04:51.3]} 6. Bb3 {[%clk 0:04:48.3]} 6... Bc5 {[%clk 0:04:51]}
7. O-O {[%clk 0:04:46.8]} 7... d6 {[%clk 0:04:44.7]} 8. c3 {[%clk 0:04:44.4]}
8... O-O {[%clk 0:04:39.4]} 9. a4 {[%clk 0:04:42.9]} 9... Rb8 {[%clk 0:04:37.4]}
10. Bg5 {[%clk 0:04:38.4]} 10... h6 {[%clk 0:04:35.8]} 11. Bh4 {[%clk
0:04:37.7]} 11... g5 {[%clk 0:04:26.9]} 12. Nxg5 {[%clk 0:04:36.8]} 12... hxg5
{[%clk 0:04:25.4]} 13. Bxg5 {[%clk 0:04:36.1]} 13... Bg4 {[%clk 0:04:14.5]} 14.
Qe1 {[%clk 0:04:26.7]} 14... Kg7 {[%clk 0:04:09.8]} 15. Kh1 {[%clk 0:04:17.4]}
15... Qd7 {[%clk 0:03:50.6]} 16. f4 {[%clk 0:04:12.9]} 16... Nh5 {[%clk
0:03:36.8]} 17. fxe5 {[%clk 0:04:09.5]} 17... dxe5 {[%clk 0:03:29.3]} 18. axb5
{[%clk 0:04:03]} 18... axb5 {[%clk 0:03:27.5]} 19. h4 {[%clk 0:03:57.6]} 19...
Qxd3 {[%clk 0:03:21.5]} 20. Nd2 {[%clk 0:03:37.2]} 20... Ng3+ {[%clk 0:03:17.3]}
21. Kh2 {[%clk 0:03:32.8]} 21... Nxf1+ {[%clk 0:03:13.7]} 22. Nxf1 {[%clk
0:03:32]} 22... Rh8 {[%clk 0:02:59]} 23. Ra6 {[%clk 0:03:28.7]} 23... Ne7 {[%clk
0:02:54.3]} 24. Bf6+ {[%clk 0:02:57.2]} 24... Kg8 {[%clk 0:02:49.5]} 25. Qc1
{[%clk 0:02:33.6]} 25... Rh7 {[%clk 0:02:34]} 26. Qg5+ {[%clk 0:02:11.4]} 26...
Kf8 {[%clk 0:02:27.6]} 27. Qxg4 {[%clk 0:02:04.6]} 27... Qxf1 {[%clk 0:02:25.8]}
28. Bxe5 {[%clk 0:01:42.2]} 28... Bg1+ {[%clk 0:01:56.3]} 29. Kh3 {[%clk
0:01:31.4]} 29... Qd3+ {[%clk 0:01:54.9]} 30. Bg3 {[%clk 0:01:21.4]} 30... Bf2
{[%clk 0:01:42.7]} 31. Rf6 {[%clk 0:00:50.8]} 31... Qxg3+ {[%clk 0:01:38.7]} 32.
Qxg3 {[%clk 0:00:49.2]} 32... Bxg3 {[%clk 0:01:38.3]} 33. Kxg3 {[%clk
0:00:48.1]} 33... Rb6 {[%clk 0:01:34.6]} 0-1

[Event "Live Chess"]
[Site "Chess.com"]
[Date "2024.06.01"]
[Round "-"]
[White "cymbalshift"]
[Black "IgorSchukin"]
[Result "0-1"]
[WhiteElo "1657"]
[BlackElo "1713"]
[TimeControl "300"]
[EndTime "15:54:58 PDT"]
[Termination "IgorSchukin won by resignation"]

1. d4 {[%clk 0:04:58.2]} 1... d5 {[%clk 0:04:58.7]} 2. e4 {[%clk 0:04:57]} 2...
dxe4 {[%clk 0:04:57.2]} 3. Nc3 {[%clk 0:04:56.5]} 3... Nf6 {[%clk 0:04:56.1]} 4.
f3 {[%clk 0:04:56]} 4... c5 {[%clk 0:04:50.8]} 5. d5 {[%clk 0:04:49.4]} 5... e6
{[%clk 0:04:48.9]} 6. fxe4 {[%clk 0:04:48.1]} 6... exd5 {[%clk 0:04:46.8]} 7.
exd5 {[%clk 0:04:39.6]} 7... Bd6 {[%clk 0:04:44.1]} 8. Qe2+ {[%clk 0:04:30.2]}
8... Be7 {[%clk 0:04:40.4]} 9. Bg5 {[%clk 0:04:16.8]} 9... O-O {[%clk
0:04:38.6]} 10. O-O-O {[%clk 0:04:15.7]} 10... h6 {[%clk 0:04:34.5]} 11. Bh4
{[%clk 0:04:09.2]} 11... Bg4 {[%clk 0:04:32.4]} 12. Nf3 {[%clk 0:04:04.5]} 12...
a6 {[%clk 0:04:23.5]} 13. h3 {[%clk 0:03:52.8]} 13... Bh5 {[%clk 0:04:16.4]} 14.
g4 {[%clk 0:03:51.1]} 14... Bg6 {[%clk 0:04:15.3]} 15. Ne5 {[%clk 0:03:50.2]}
15... Bh7 {[%clk 0:04:09.5]} 16. Bg2 {[%clk 0:03:35.7]} 16... g5 {[%clk
0:04:06.6]} 17. Bg3 {[%clk 0:03:16.1]} 17... Bd6 {[%clk 0:04:03.2]} 18. h4
{[%clk 0:03:13.2]} 18... Nbd7 {[%clk 0:03:53.2]} 19. hxg5 {[%clk 0:03:04.7]}
19... hxg5 {[%clk 0:03:51.5]} 20. Rdf1 {[%clk 0:02:25.3]} 20... Re8 {[%clk
0:03:44.6]} 21. Rxh7 {[%clk 0:02:14]} 21... Nxh7 {[%clk 0:03:38.1]} 22. Rf5
{[%clk 0:00:49.1]} 22... Bxe5 {[%clk 0:03:33.3]} 23. Bxe5 {[%clk 0:00:45.6]}
23... Nxe5 {[%clk 0:03:26.2]} 24. Rxe5 {[%clk 0:00:44.5]} 24... Rxe5 {[%clk
0:03:24]} 25. Qxe5 {[%clk 0:00:44.4]} 25... Qe8 {[%clk 0:03:19.7]} 26. Qxe8+
{[%clk 0:00:28.6]} 26... Rxe8 {[%clk 0:03:17.9]} 27. d6 {[%clk 0:00:27.6]} 27...
Rd8 {[%clk 0:03:14.8]} 28. Ne4 {[%clk 0:00:23.5]} 28... b6 {[%clk 0:03:08.3]}
29. c4 {[%clk 0:00:19.4]} 29... Kg7 {[%clk 0:03:06.1]} 30. a3 {[%clk 0:00:18.1]}
30... Nf6 {[%clk 0:03:04.3]} 31. Nxf6 {[%clk 0:00:12.6]} 31... Kxf6 {[%clk
0:03:02.8]} 32. b4 {[%clk 0:00:12.5]} 32... Rxd6 {[%clk 0:03:00.8]} 33. bxc5
{[%clk 0:00:11]} 33... bxc5 {[%clk 0:02:59.9]} 34. Bd5 {[%clk 0:00:10]} 34...
Rxd5 {[%clk 0:02:56.5]} 35. cxd5 {[%clk 0:00:08.7]} 35... Ke5 {[%clk 0:02:56.2]}
0-1

[Event "Live Chess"]
[Site "Chess.com"]
[Date "2024.06.01"]
[Round "-"]
[White "NebodarMatevich"]
[Black "viktor_forever1994"]
[Result "1-0"]
[WhiteElo "1580"]
[BlackElo "1372"]
[TimeControl "300"]
[EndTime "15:55:07 PDT"]
[Termination "NebodarMatevich won on time"]

1. e4 {[%clk 0:04:59.3]} 1... e5 {[%clk 0:04:59]} 2. d4 {[%clk 0:04:58.1]} 2...
exd4 {[%clk 0:04:58]} 3. Qxd4 {[%clk 0:04:56.9]} 3... Nc6 {[%clk 0:04:56.9]} 4.
Qe3 {[%clk 0:04:56.4]} 4... Nf6 {[%clk 0:04:52.4]} 5. Nc3 {[%clk 0:04:55.4]}
5... Bb4 {[%clk 0:04:50.1]} 6. Bd2 {[%clk 0:04:53.9]} 6... O-O {[%clk
0:04:48.7]} 7. O-O-O {[%clk 0:04:52.8]} 7... Re8 {[%clk 0:04:47]} 8. Qg3 {[%clk
0:04:43.1]} 8... Kh8 {[%clk 0:04:20.4]} 9. f3 {[%clk 0:04:40.5]} 9... d6 {[%clk
0:04:15.1]} 10. Nge2 {[%clk 0:04:34.6]} 10... a5 {[%clk 0:04:10.5]} 11. a3
{[%clk 0:04:33.1]} 11... Bc5 {[%clk 0:04:05.9]} 12. Nf4 {[%clk 0:04:20.6]} 12...
h6 {[%clk 0:03:57.2]} 13. Nfd5 {[%clk 0:04:19.3]} 13... Nxd5 {[%clk 0:03:50.2]}
14. Nxd5 {[%clk 0:04:18.4]} 14... Be6 {[%clk 0:03:40.3]} 15. Bc4 {[%clk
0:04:12.2]} 15... Ne5 {[%clk 0:03:34.1]} 16. Bc3 {[%clk 0:03:54.8]} 16... Qg5+
{[%clk 0:03:10]} 17. f4 {[%clk 0:03:51.5]} 17... Qxg3 {[%clk 0:03:07.7]} 18.
hxg3 {[%clk 0:03:50.9]} 18... Nxc4 {[%clk 0:03:06.7]} 19. Nxc7 {[%clk
0:03:45.1]} 19... Rac8 {[%clk 0:03:00.4]} 20. Nxe8 {[%clk 0:03:34.7]} 20... Rxe8
{[%clk 0:03:00.3]} 21. f5 {[%clk 0:02:54.9]} 21... Bd7 {[%clk 0:02:54.4]} 22.
Rhe1 {[%clk 0:02:52.9]} 22... b5 {[%clk 0:02:28.9]} 23. g4 {[%clk 0:02:44.2]}
23... b4 {[%clk 0:02:21.7]} 24. axb4 {[%clk 0:02:43.2]} 24... axb4 {[%clk
0:02:19.4]} 25. Bd4 {[%clk 0:02:36.8]} 25... Bc6 {[%clk 0:01:59.3]} 26. Bxc5
{[%clk 0:02:10.7]} 26... dxc5 {[%clk 0:01:59.2]} 27. b3 {[%clk 0:02:05.8]} 27...
Ne5 {[%clk 0:01:32.7]} 28. Rd6 {[%clk 0:01:52.5]} 28... Ba8 {[%clk 0:01:27.3]}
29. f6 {[%clk 0:01:46.7]} 29... Nxg4 {[%clk 0:01:22.2]} 30. fxg7+ {[%clk
0:01:46]} 30... Kxg7 {[%clk 0:01:20.9]} 31. Ra6 {[%clk 0:01:30.7]} 31... Bb7
{[%clk 0:01:06.3]} 32. Ra7 {[%clk 0:01:29.4]} 32... Bxe4 {[%clk 0:00:51.3]} 33.
Rf1 {[%clk 0:01:26.6]} 33... Bg6 {[%clk 0:00:46.2]} 34. Rf4 {[%clk 0:01:22.1]}
34... Nf6 {[%clk 0:00:42]} 35. Rc4 {[%clk 0:01:20.2]} 35... Rc8 {[%clk
0:00:38.3]} 36. Ra5 {[%clk 0:01:12.5]} 36... Ne4 {[%clk 0:00:31.8]} 37. g4
{[%clk 0:01:02.1]} 37... Nf2 {[%clk 0:00:23.7]} 38. Raxc5 {[%clk 0:00:55.3]}
38... Rxc5 {[%clk 0:00:23.6]} 39. Rxc5 {[%clk 0:00:54.6]} 39... Nxg4 {[%clk
0:00:23]} 40. Rc4 {[%clk 0:00:54.3]} 40... Ne3 {[%clk 0:00:21.4]} 41. Rxb4
{[%clk 0:00:53.8]} 41... h5 {[%clk 0:00:20.2]} 42. c4 {[%clk 0:00:50.2]} 42...
h4 {[%clk 0:00:18.5]} 43. c5 {[%clk 0:00:49.7]} 43... Nd5 {[%clk 0:00:17.3]} 44.
Rxh4 {[%clk 0:00:47]} 44... Kf6 {[%clk 0:00:14.2]} 45. c6 {[%clk 0:00:46]} 45...
Nc7 {[%clk 0:00:13]} 46. b4 {[%clk 0:00:44.6]} 46... Ke7 {[%clk 0:00:11.9]} 47.
Rd4 {[%clk 0:00:40.9]} 47... Nb5 {[%clk 0:00:10.1]} 48. Rd5 {[%clk 0:00:36.9]}
48... Nc7 {[%clk 0:00:09.1]} 49. Rd7+ {[%clk 0:00:36.1]} 49... Ke6 {[%clk
0:00:07.1]} 50. Rxc7 {[%clk 0:00:35.4]} 50... Kd6 {[%clk 0:00:06.2]} 51. Rc8
{[%clk 0:00:22.4]} 51... Kd5 {[%clk 0:00:03.4]} 52. b5 {[%clk 0:00:21.1]} 52...
Kc5 {[%clk 0:00:02.2]} 53. b6 {[%clk 0:00:19.4]} 53... Kxb6 {[%clk 0:00:01.3]}
54. Kd2 {[%clk 0:00:16.6]} 54... Bf5 {[%clk 0:00:00.2]} 55. Ke3 {[%clk
0:00:15.8]} 1-0

[Event "Live Chess"]
[Site "Chess.com"]
[Date "2024.06.01"]
[Round "-"]
[White "MaksymYurii"]
[Black "DoctorMantisTobogganMD"]
[Result "0-1"]
[WhiteElo "937"]
[BlackElo "2177"]
[TimeControl "300"]
[EndTime "15:55:14 PDT"]
[Termination "DoctorMantisTobogganMD won by checkmate"]

1. e4 {[%clk 0:04:58.9]} 1... d5 {[%clk 0:04:58.5]} 2. e5 {[%clk 0:04:56.5]}
2... c5 {[%clk 0:04:56.8]} 3. Nf3 {[%clk 0:04:54.8]} 3... Nc6 {[%clk 0:04:55.3]}
4. Bb5 {[%clk 0:04:53.3]} 4... Bg4 {[%clk 0:04:53.2]} 5. Bxc6+ {[%clk
0:04:49.9]} 5... bxc6 {[%clk 0:04:51.8]} 6. h4 {[%clk 0:04:48.5]} 6... e6 {[%clk
0:04:50.4]} 7. d3 {[%clk 0:04:37]} 7... Qb8 {[%clk 0:04:46.7]} 8. Bf4 {[%clk
0:04:33]} 8... Qxb2 {[%clk 0:04:44.2]} 9. Nbd2 {[%clk 0:04:27.4]} 9... Qb7
{[%clk 0:04:39.4]} 10. Rb1 {[%clk 0:04:22.8]} 10... Qc7 {[%clk 0:04:37.3]} 11.
h5 {[%clk 0:04:11.5]} 11... Ne7 {[%clk 0:04:32]} 12. Rh4 {[%clk 0:04:09.7]}
12... Bxf3 {[%clk 0:04:30.5]} 13. Nxf3 {[%clk 0:04:07.3]} 13... Nf5 {[%clk
0:04:30.4]} 14. Rh1 {[%clk 0:04:00.3]} 14... h6 {[%clk 0:04:27.9]} 15. d4 {[%clk
0:03:48.5]} 15... Nxd4 {[%clk 0:04:25.4]} 16. Nxd4 {[%clk 0:03:47.1]} 16... cxd4
{[%clk 0:04:25.3]} 17. Qxd4 {[%clk 0:03:45.7]} 17... Be7 {[%clk 0:04:24.5]} 18.
a4 {[%clk 0:03:33.9]} 18... c5 {[%clk 0:04:22.2]} 19. Qb2 {[%clk 0:03:24.8]}
19... O-O {[%clk 0:04:19]} 20. Qb3 {[%clk 0:03:14.9]} 20... c4 {[%clk 0:04:17]}
21. Qg3 {[%clk 0:03:13]} 21... Kh8 {[%clk 0:03:59.9]} 22. Rh4 {[%clk 0:02:57.1]}
22... Bxh4 {[%clk 0:03:57.9]} 23. Qxh4 {[%clk 0:02:56.2]} 23... Rab8 {[%clk
0:03:55.2]} 24. Ke2 {[%clk 0:02:54.4]} 24... Rxb1 {[%clk 0:03:53.4]} 25. Bxh6
{[%clk 0:02:49]} 25... gxh6 {[%clk 0:03:44.1]} 26. Qf6+ {[%clk 0:02:46.5]} 26...
Kh7 {[%clk 0:03:43.6]} 27. g4 {[%clk 0:02:41.3]} 27... Rg8 {[%clk 0:03:39.6]}
28. f3 {[%clk 0:02:25.6]} 28... Rg5 {[%clk 0:03:37.2]} 29. f4 {[%clk 0:02:08.8]}
29... Rxg4 {[%clk 0:03:35.2]} 30. Kf3 {[%clk 0:02:04.6]} 30... Rbg1 {[%clk
0:03:27.8]} 31. f5 {[%clk 0:01:55.6]} 31... R1g3+ {[%clk 0:03:23.2]} 32. Kf2
{[%clk 0:01:52.1]} 32... Qc5+ {[%clk 0:03:20.6]} 33. Ke2 {[%clk 0:01:47.2]}
33... Qe3+ {[%clk 0:03:18.8]} 34. Kd1 {[%clk 0:01:41.7]} 34... Rg1# {[%clk
0:03:17.4]} 0-1

[Event "Live Chess"]
[Site "Chess.com"]
[Date "2024.06.01"]
[Round "-"]
[White "gmnorfolk"]
[Black "lyricalschemes"]
[Result "1-0"]
[WhiteElo "2117"]
[BlackElo "2322"]
[TimeControl "300"]
[EndTime "15:55:48 PDT"]
[Termination "gmnorfolk won by resignation"]

1. c4 {[%clk 0:04:55.7]} 1... e5 {[%clk 0:04:52.3]} 2. Nc3 {[%clk 0:04:53.9]}
2... Nf6 {[%clk 0:04:38]} 3. Nf3 {[%clk 0:04:48.9]} 3... Nc6 {[%clk 0:04:35.2]}
4. g3 {[%clk 0:04:46.9]} 4... d5 {[%clk 0:04:32.9]} 5. cxd5 {[%clk 0:04:45.1]}
5... Nxd5 {[%clk 0:04:31.7]} 6. Bg2 {[%clk 0:04:44.7]} 6... Nxc3 {[%clk
0:04:31]} 7. dxc3 {[%clk 0:04:34.1]} 7... Qxd1+ {[%clk 0:04:23.9]} 8. Kxd1
{[%clk 0:04:33]} 8... Bg4 {[%clk 0:04:22.2]} 9. h3 {[%clk 0:04:31.1]} 9...
O-O-O+ {[%clk 0:04:18.1]} 10. Ke1 {[%clk 0:04:28.5]} 10... Bh5 {[%clk
0:04:15.8]} 11. Be3 {[%clk 0:04:26.3]} 11... f6 {[%clk 0:04:10.7]} 12. Rd1
{[%clk 0:04:19.9]} 12... Be7 {[%clk 0:04:09.3]} 13. Nd2 {[%clk 0:04:16.4]} 13...
Bf7 {[%clk 0:04:04.9]} 14. Bxc6 {[%clk 0:04:11.8]} 14... bxc6 {[%clk 0:04:04.2]}
15. b3 {[%clk 0:04:09.7]} 15... Kb7 {[%clk 0:03:59.5]} 16. f3 {[%clk 0:04:02.8]}
16... f5 {[%clk 0:03:55.1]} 17. Nb1 {[%clk 0:03:59.9]} 17... g5 {[%clk
0:03:49.2]} 18. Kf2 {[%clk 0:03:42.1]} 18... f4 {[%clk 0:03:46.2]} 19. Bc1
{[%clk 0:03:40.2]} 19... h5 {[%clk 0:03:43.8]} 20. gxf4 {[%clk 0:03:31.3]} 20...
gxf4 {[%clk 0:03:39.4]} 21. e3 {[%clk 0:03:23.7]} 21... Bh4+ {[%clk 0:03:34.4]}
22. Ke2 {[%clk 0:03:21.6]} 22... Bg6 {[%clk 0:03:14.3]} 23. Na3 {[%clk
0:03:10.2]} 23... Bg3 {[%clk 0:03:11]} 24. e4 {[%clk 0:03:03.2]} 24... h4 {[%clk
0:03:07.7]} 25. Nc4 {[%clk 0:03:01.2]} 25... Rxd1 {[%clk 0:03:03.7]} 26. Rxd1
{[%clk 0:02:57.9]} 26... Re8 {[%clk 0:02:44.9]} 27. Rd7 {[%clk 0:02:54.7]} 27...
Re6 {[%clk 0:02:32.9]} 28. Ba3 {[%clk 0:02:42.3]} 28... Kc8 {[%clk 0:02:28.5]}
29. Rg7 {[%clk 0:02:38.2]} 29... Bh5 {[%clk 0:02:19.4]} 30. Rg5 {[%clk
0:02:35.8]} 30... Be8 {[%clk 0:02:15.2]} 31. Nxe5 {[%clk 0:02:31.1]} 31... c5
{[%clk 0:02:10.2]} 32. Bxc5 {[%clk 0:02:26.4]} 32... Ra6 {[%clk 0:02:02.7]} 33.
a4 {[%clk 0:02:20.1]} 1-0

[Event "Live Chess"]
[Site "Chess.com"]
[Date "2024.06.01"]
[Round "-"]
[White "gobbles19"]
[Black "MellowAesthetic"]
[Result "1-0"]
[WhiteElo "2294"]
[BlackElo "2079"]
[TimeControl "300"]
[EndTime "15:55:55 PDT"]
[Termination "gobbles19 won on time"]

1. e4 {[%clk 0:04:58.2]} 1... c5 {[%clk 0:04:58.5]} 2. d4 {[%clk 0:04:57.1]}
2... cxd4 {[%clk 0:04:57.4]} 3. c3 {[%clk 0:04:56.8]} 3... dxc3 {[%clk
0:04:57.3]} 4. Nxc3 {[%clk 0:04:56.1]} 4... Nc6 {[%clk 0:04:56.9]} 5. Bc4 {[%clk
0:04:55.3]} 5... d6 {[%clk 0:04:54.4]} 6. Nf3 {[%clk 0:04:54.9]} 6... a6 {[%clk
0:04:53.8]} 7. O-O {[%clk 0:04:53.8]} 7... Nf6 {[%clk 0:04:51.4]} 8. h3 {[%clk
0:04:50.7]} 8... e6 {[%clk 0:04:33.9]} 9. Qe2 {[%clk 0:04:49.2]} 9... Be7 {[%clk
0:04:24.8]} 10. Rd1 {[%clk 0:04:47.3]} 10... Qc7 {[%clk 0:04:10.1]} 11. Bf4
{[%clk 0:04:40.9]} 11... Ne5 {[%clk 0:04:05.3]} 12. Nxe5 {[%clk 0:04:25]} 12...
dxe5 {[%clk 0:04:04.4]} 13. Bg5 {[%clk 0:04:23.6]} 13... O-O {[%clk 0:03:54.2]}
14. Rac1 {[%clk 0:04:22.5]} 14... Bd7 {[%clk 0:03:11.4]} 15. Bb3 {[%clk
0:04:18.3]} 15... Bc6 {[%clk 0:02:05.7]} 16. Bxf6 {[%clk 0:04:13.4]} 16... Bxf6
{[%clk 0:02:04.8]} 17. Nd5 {[%clk 0:04:12.7]} 17... exd5 {[%clk 0:02:04]} 18.
exd5 {[%clk 0:04:12.1]} 18... Rfd8 {[%clk 0:00:52.5]} 19. dxc6 {[%clk
0:04:09.6]} 19... bxc6 {[%clk 0:00:51.3]} 20. Qc4 {[%clk 0:04:00.7]} 20... Rd4
{[%clk 0:00:34.2]} 21. Qxc6 {[%clk 0:03:38.7]} 21... Qxc6 {[%clk 0:00:33.5]} 22.
Rxc6 {[%clk 0:03:37.2]} 22... a5 {[%clk 0:00:27.8]} 23. Rdc1 {[%clk 0:03:33.7]}
23... Rad8 {[%clk 0:00:13.6]} 24. Rc7 {[%clk 0:03:30.3]} 24... R4d7 {[%clk
0:00:12.7]} 25. Rxd7 {[%clk 0:03:28]} 25... Rxd7 {[%clk 0:00:12.6]} 26. Rc8+
{[%clk 0:03:27.1]} 26... Rd8 {[%clk 0:00:12.2]} 27. Rc7 {[%clk 0:03:26.3]} 27...
Rf8 {[%clk 0:00:11.5]} 28. Ra7 {[%clk 0:03:24.9]} 28... e4 {[%clk 0:00:10.9]}
29. Rxa5 {[%clk 0:03:21.1]} 29... Bxb2 {[%clk 0:00:10.5]} 30. Ra7 {[%clk
0:03:19.5]} 30... Bd4 {[%clk 0:00:08.4]} 31. Re7 {[%clk 0:03:17.3]} 31... Bc5
{[%clk 0:00:06.3]} 32. Rxe4 {[%clk 0:03:15.9]} 32... Rd8 {[%clk 0:00:02.4]} 33.
Rc4 {[%clk 0:03:08.9]} 33... Bd6 {[%clk 0:00:01.4]} 34. Rc6 {[%clk 0:03:06.4]}
1-0